[Event "Championnat du monde jeunes U12F"]
[Date "2024.11.15"]
[White "Yang, Hayeon"]
[Black "Li, Peishan"]
[WhiteElo "1482"]
[BlackElo "1729"]
[Round "1.35"]
[Result "0-1"]
[TimeControl "5400+30"]

1. e4 {[%clk 1:30:52]} 1... c5 {[%clk 1:30:55]} 2. Nf3 {[%clk 1:31:00]} 2... e6
{[%clk 1:31:19]} 3. d4 {[%clk 1:31:03]} 3... cxd4 {[%clk 1:31:43]} 4. Nxd4
{[%clk 1:31:23]} 4... a6 {[%clk 1:32:08]} 5. Nc3 {[%clk 1:31:28]} 5... Qc7
{[%clk 1:32:30]} 6. Be2 {[%clk 1:31:17]} 6... Nf6 {[%clk 1:32:51]} 7. Nf3 {[%clk
1:31:20]} 7... Bb4 {[%clk 1:32:26]} 8. Qd3 {[%clk 1:30:19]} 8... Nxe4 {[%clk
1:27:08]} 9. Bd2 {[%clk 1:27:21]} 9... Nxd2 {[%clk 1:26:58]} 10. Qxd2 {[%clk
1:27:43]} 10... O-O {[%clk 1:26:17]} 11. O-O {[%clk 1:26:23]} 11... Nc6 {[%clk
1:24:51]} 12. a3 {[%clk 1:24:24]} 12... Be7 {[%clk 1:25:12]} 13. Bd3 {[%clk
1:22:35]} 13... d5 {[%clk 1:23:41]} 14. Ne2 {[%clk 1:21:14]} 14... Rd8 {[%clk
1:20:02]} 15. Qc1 {[%clk 1:19:51]} 15... e5 {[%clk 1:19:00]} 16. Qe3 {[%clk
1:08:19]} 16... e4 {[%clk 1:18:51]} 17. Bxe4 {[%clk 1:07:42]} 17... dxe4 {[%clk
1:19:14]} 18. Qxe4 {[%clk 1:06:38]} 18... Bf6 {[%clk 1:19:13]} 19. Rab1 {[%clk
1:04:07]} 19... Be6 {[%clk 1:17:01]} 20. Ng3 {[%clk 1:01:40]} 20... Nd4 {[%clk
1:16:33]} 21. Nxd4 {[%clk 0:57:06]} 21... Rxd4 {[%clk 1:16:50]} 22. Qe2 {[%clk
0:54:43]} 22... Bc4 {[%clk 1:16:57]} 23. Qf3 {[%clk 0:50:01]} 23... Bxf1 {[%clk
1:17:15]} 24. Rxf1 {[%clk 0:49:18]} 24... Qc6 {[%clk 1:17:07]} 25. Qb3 {[%clk
0:46:57]} 25... Rad8 {[%clk 1:17:17]} 26. c3 {[%clk 0:44:45]} 26... Qd5 {[%clk
1:17:15]} 27. Qxd5 {[%clk 0:38:11]} 27... R4xd5 {[%clk 1:17:27]} 28. h3 {[%clk
0:37:05]} 28... Rd1 29. Ne4 {[%clk 0:34:22]} 29... Rxf1+ {[%clk 1:17:53]} 30.
Kxf1 {[%clk 0:34:43]} 30... Rd1+ {[%clk 1:17:43]} 31. Ke2 {[%clk 0:34:56]} 31...
Rb1 {[%clk 1:18:04]} 32. Nxf6+ {[%clk 0:31:59]} 32... gxf6 {[%clk 1:18:28]} 33.
Kd3 {[%clk 0:32:18]} 33... Rxb2 {[%clk 1:18:51]} 34. Ke3 {[%clk 0:32:41]} 34...
Rb3 {[%clk 1:19:14]} 35. Kd3 {[%clk 0:32:54]} 35... Rxa3 {[%clk 1:19:33]} 36.
Kd2 {[%clk 0:32:34]} 36... b5 {[%clk 1:19:53]} 37. Ke2 {[%clk 0:32:43]} 37...
Rxc3 {[%clk 1:20:13]} 38. f3 {[%clk 0:25:07]} 38... b4 {[%clk 1:20:31]} 39. Kf2
{[%clk 0:22:38]} 39... b3 {[%clk 1:20:52]} 40. Kg3 {[%clk 0:22:11]} 40... b2
{[%clk 1:21:13]} 41. Kg4 {[%clk 0:21:57]} 41... b1=Q {[%clk 1:21:29]} 42. h4
{[%clk 0:20:58]} 42... Qg6+ {[%clk 1:21:25]} 43. Kh3 {[%clk 0:20:48]} 43... Rc2
{[%clk 1:21:45]} 44. h5 {[%clk 0:19:33]} 44... Qxg2+ {[%clk 1:22:02]} 45. Kh4
{[%clk 0:19:46]} 45... Rc4+ {[%clk 1:22:23]} 46. f4 {[%clk 0:19:56]} 46... Rxf4#
{[%clk 1:22:45]} 0-1

[Variant "Standard"]
[Site "Europe Echecs"]

[Event "Championnat du monde jeunes U12F"]
[Date "2024.11.15"]
[White "Ribreau, Anna"]
[Black "Istratova, Nika"]
[WhiteElo "1726"]
[BlackElo "1473"]
[Round "1.36"]
[Result "1/2-1/2"]
[TimeControl "5400+30"]

1. c4 {[%clk 1:30:53]} 1... c5 {[%clk 1:30:54]} 2. g3 {[%clk 1:30:55]} 2... Nc6
{[%clk 1:30:42]} 3. Bg2 {[%clk 1:30:39]} 3... Nf6 {[%clk 1:30:34]} 4. Nc3 {[%clk
1:30:15]} 4... e6 {[%clk 1:30:16]} 5. Nf3 {[%clk 1:29:37]} 5... Be7 {[%clk
1:29:01]} 6. O-O {[%clk 1:27:45]} 6... O-O {[%clk 1:28:31]} 7. d4 {[%clk
1:26:05]} 7... d5 {[%clk 1:18:28]} 8. cxd5 {[%clk 1:23:54]} 8... exd5 {[%clk
1:17:27]} 9. Bg5 {[%clk 1:22:49]} 9... c4 {[%clk 1:09:46]} 10. Ne5 {[%clk
1:17:32]} 10... Be6 {[%clk 1:04:29]} 11. Nxc6 {[%clk 1:10:53]} 11... bxc6 {[%clk
1:04:41]} 12. b3 {[%clk 1:08:41]} 12... h6 {[%clk 1:00:11]} 13. Bf4 {[%clk
1:04:46]} 13... cxb3 {[%clk 0:57:41]} 14. Qxb3 {[%clk 1:04:30]} 14... Bd6 {[%clk
0:56:36]} 15. Bxd6 {[%clk 1:01:40]} 15... Qxd6 {[%clk 0:56:44]} 16. Qa4 {[%clk
1:01:25]} 16... Rfc8 {[%clk 0:46:15]} 17. e4 {[%clk 1:00:17]} 17... dxe4 {[%clk
0:44:01]} 18. Nxe4 {[%clk 1:00:15]} 18... Nxe4 {[%clk 0:43:58]} 19. Bxe4 Bd5
{[%clk 0:42:00]} 20. Bxd5 {[%clk 1:00:31]} 20... cxd5 {[%clk 0:41:30]} 21. Rac1
{[%clk 1:00:20]} 21... a6 {[%clk 0:40:05]} 22. Rfe1 {[%clk 0:59:18]} 22... Kh7
{[%clk 0:36:27]} 23. Rc2 {[%clk 0:57:51]} 23... Rab8 {[%clk 0:34:32]} 24. Rec1
{[%clk 0:57:50]} 24... Rb4 {[%clk 0:32:25]} 25. Qa5 {[%clk 0:54:27]} 25... Rxc2
{[%clk 0:31:03]} 26. Rxc2 {[%clk 0:54:50]} 26... Rxd4 {[%clk 0:30:40]} 27. Rc7
{[%clk 0:54:02]} 27... Qf6 {[%clk 0:25:20]} 28. Kg2 {[%clk 0:42:04]} 28... Rd3
{[%clk 0:14:00]} 29. Qc5 {[%clk 0:28:06]} 29... Qf3+ {[%clk 0:12:13]} 30. Kh3
{[%clk 0:28:27]} 30... Qf5+ {[%clk 0:09:31]} 31. Kg2 {[%clk 0:28:31]} 31... g5
{[%clk 0:07:41]} 32. Qc2 {[%clk 0:25:22]} 32... Qf3+ {[%clk 0:06:38]} 1/2-1/2

[Variant "Standard"]
[Site "Europe Echecs"]

[Event "Championnat du monde jeunes U12F"]
[Date "2024.11.15"]
[White "Oksanen, Maria"]
[Black "Prokofieva, Alexandra"]
[WhiteElo "1725"]
[BlackElo "1467"]
[Round "1.38"]
[Result "1-0"]
[TimeControl "5400+30"]

1. e4 {[%clk 1:30:57]} 1... e5 {[%clk 1:30:51]} 2. Nf3 {[%clk 1:31:21]} 2... Nc6
{[%clk 1:31:10]} 3. Bb5 {[%clk 1:31:42]} 3... Nf6 {[%clk 1:31:08]} 4. O-O {[%clk
1:31:59]} 4... Be7 {[%clk 1:31:29]} 5. Re1 {[%clk 1:31:22]} 5... O-O {[%clk
1:31:41]} 6. Bxc6 {[%clk 1:30:27]} 6... bxc6 {[%clk 1:31:59]} 7. Nxe5 {[%clk
1:30:28]} 7... Bb7 {[%clk 1:31:58]} 8. d4 {[%clk 1:29:36]} 8... d6 {[%clk
1:31:11]} 9. Nc4 {[%clk 1:28:17]} 9... d5 {[%clk 1:30:35]} 10. Na5 {[%clk
1:27:58]} 10... Rb8 {[%clk 1:30:45]} 11. e5 {[%clk 1:26:50]} 11... Nd7 {[%clk
1:30:09]} 12. Re3 {[%clk 1:24:03]} 12... Bg5 {[%clk 1:29:49]} 13. Rg3 {[%clk
1:13:43]} 13... Bh4 {[%clk 1:28:15]} 14. Rh3 {[%clk 1:13:00]} 14... f5 {[%clk
1:19:38]} 15. Qh5 {[%clk 1:11:37]} 15... f4 {[%clk 1:18:47]} 16. Rxh4 {[%clk
1:10:27]} 16... h6 {[%clk 1:17:21]} 17. Rg4 {[%clk 1:09:51]} 17... Rf6 {[%clk
1:14:07]} 18. Bxf4 {[%clk 1:08:43]} 18... Qe7 {[%clk 1:13:48]} 19. Bxh6 {[%clk
1:05:19]} 19... Rxh6 {[%clk 1:11:56]} 20. Qxh6 {[%clk 1:05:33]} 20... Rf8 {[%clk
1:12:10]} 21. Nd2 {[%clk 1:03:49]} 21... Ba6 {[%clk 1:11:19]} 22. Nxc6 {[%clk
1:03:32]} 22... Qf7 {[%clk 1:10:44]} 23. Nf3 {[%clk 1:03:03]} 23... Nb8 {[%clk
1:08:26]} 24. e6 {[%clk 1:01:49]} 24... Qf6 {[%clk 1:08:36]} 25. Qxf6 {[%clk
1:01:42]} 25... Rxf6 {[%clk 1:08:53]} 26. e7 {[%clk 1:01:31]} 26... Kf7 {[%clk
1:08:32]} 27. Rxg7+ {[%clk 1:01:34]} 27... Kxg7 {[%clk 1:08:15]} 28. e8=Q {[%clk
1:01:41]} 28... Nxc6 {[%clk 1:08:22]} 29. Re1 {[%clk 1:01:46]} 29... Bb5 {[%clk
1:07:28]} 30. Qd7+ {[%clk 1:01:54]} 30... Rf7 {[%clk 1:07:29]} 31. Qg4+ {[%clk
1:02:13]} 31... Kf8 {[%clk 1:07:38]} 32. Ng5 {[%clk 1:02:17]} 32... Nxd4 {[%clk
1:04:12]} 33. Qxd4 {[%clk 1:01:34]} 33... Rf5 {[%clk 1:04:16]} 34. Qh8# 1-0

[Variant "Standard"]
[Site "Europe Echecs"]

[Event "Championnat du monde jeunes U12F"]
[Date "2024.11.15"]
[White "Jung, Minju"]
[Black "Sinkar, Anagha Aniket"]
[WhiteElo "1457"]
[BlackElo "1723"]
[Round "1.39"]
[Result "0-1"]
[TimeControl "5400+30"]

1. e4 {[%clk 1:30:11]} 1... c5 {[%clk 1:30:39]} 2. Nf3 {[%clk 1:28:56]} 2... Nc6
{[%clk 1:29:51]} 3. d4 {[%clk 1:25:24]} 3... cxd4 {[%clk 1:28:37]} 4. Nxd4
{[%clk 1:24:26]} 4... Nf6 {[%clk 1:27:25]} 5. Nc3 {[%clk 1:23:07]} 5... g6
{[%clk 1:26:53]} 6. Be3 {[%clk 1:20:48]} 6... Bg7 {[%clk 1:25:51]} 7. Be2 {[%clk
1:18:47]} 7... O-O {[%clk 1:21:49]} 8. O-O {[%clk 1:17:34]} 8... b6 {[%clk
1:15:24]} 9. Qd2 {[%clk 1:15:37]} 9... Bb7 {[%clk 1:13:53]} 10. Bf3 {[%clk
1:11:20]} 10... Ne5 {[%clk 1:09:42]} 11. Qd1 {[%clk 1:07:37]} 11... d5 {[%clk
1:04:41]} 12. exd5 {[%clk 1:00:10]} 12... Nxf3+ {[%clk 1:03:41]} 13. Qxf3 {[%clk
0:56:21]} 13... Nxd5 {[%clk 1:02:25]} 14. Nxd5 {[%clk 0:53:00]} 14... Bxd5
{[%clk 1:01:43]} 15. Qd1 {[%clk 0:42:35]} 15... Bb7 {[%clk 1:00:08]} 16. c3
{[%clk 0:33:16]} 16... Qd7 {[%clk 0:56:50]} 17. Re1 {[%clk 0:25:45]} 17... e6
{[%clk 0:50:23]} 18. Ne2 {[%clk 0:18:17]} 18... Qc6 {[%clk 0:49:24]} 19. f3
{[%clk 0:17:03]} 19... Qb5 {[%clk 0:46:15]} 20. Qc2 {[%clk 0:15:38]} 20... Rfd8
{[%clk 0:41:41]} 21. Rad1 {[%clk 0:14:14]} 21... Rac8 {[%clk 0:36:52]} 22. Nd4
{[%clk 0:10:46]} 22... Qc4 {[%clk 0:33:17]} 23. Nb3 {[%clk 0:09:26]} 23... Qc7
{[%clk 0:27:35]} 24. Bg5 {[%clk 0:08:53]} 24... Rxd1 {[%clk 0:26:23]} 25. Rxd1
{[%clk 0:08:52]} 25... Be5 {[%clk 0:25:58]} 26. h3 {[%clk 0:07:04]} 26... Bh2+
{[%clk 0:26:10]} 27. Kh1 {[%clk 0:07:24]} 27... Qg3 {[%clk 0:25:34]} 28. Be7
{[%clk 0:06:35]} 28... Bxf3 {[%clk 0:22:28]} 29. gxf3 {[%clk 0:06:09]} 29...
Qxh3 {[%clk 0:22:29]} 30. Qxh2 {[%clk 0:06:26]} 30... Qxf3+ {[%clk 0:22:45]} 31.
Qg2 {[%clk 0:06:20]} 31... Qxd1+ {[%clk 0:22:11]} 32. Kh2 {[%clk 0:06:33]} 32...
Re8 {[%clk 0:20:52]} 33. Bf6 {[%clk 0:06:32]} 33... Qh5+ {[%clk 0:20:21]} 34.
Kg1 {[%clk 0:06:28]} 34... Qf5 {[%clk 0:20:21]} 35. Bd4 {[%clk 0:05:50]} 35...
e5 {[%clk 0:20:33]} 36. Qe2 {[%clk 0:05:15]} 36... Re6 {[%clk 0:19:08]} 37. Be3
{[%clk 0:05:24]} 37... Kg7 {[%clk 0:18:40]} 38. Qd2 {[%clk 0:05:16]} 38... Qg4+
{[%clk 0:18:51]} 39. Kf1 {[%clk 0:05:21]} 39... Rf6+ {[%clk 0:18:52]} 40. Ke1
{[%clk 0:05:31]} 40... Qh4+ {[%clk 0:18:29]} 41. Kd1 {[%clk 0:05:10]} 41... Qh1+
{[%clk 0:18:22]} 42. Kc2 {[%clk 0:04:34]} 42... Qe4+ {[%clk 0:18:40]} 43. Qd3
{[%clk 0:04:38]} 43... Qxd3+ {[%clk 0:18:58]} 44. Kxd3 {[%clk 0:05:02]} 44... h5
{[%clk 0:19:18]} 45. Bg5 {[%clk 0:05:17]} 45... Rf5 {[%clk 0:19:33]} 46. Bh4
{[%clk 0:05:28]} 46... g5 {[%clk 0:19:57]} 47. Be1 {[%clk 0:05:46]} 47... h4
{[%clk 0:20:22]} 48. Ke4 {[%clk 0:06:05]} 48... Kg6 {[%clk 0:20:43]} 49. Nd2
{[%clk 0:06:19]} 49... f6 {[%clk 0:20:01]} 50. Nf3 {[%clk 0:06:15]} 50... Rf4+
{[%clk 0:20:26]} 51. Ke3 {[%clk 0:06:34]} 51... Kf5 {[%clk 0:20:48]} 52. b4
{[%clk 0:06:34]} 52... Kg4 {[%clk 0:20:57]} 53. Nh2+ {[%clk 0:06:42]} 53... Kh3
{[%clk 0:21:20]} 54. Nf3 {[%clk 0:06:59]} 54... Kg2 {[%clk 0:21:42]} 55. Nd2
{[%clk 0:06:55]} 55... h3 {[%clk 0:22:03]} 56. Ne4 {[%clk 0:06:47]} 56... Rxe4+
{[%clk 0:22:25]} 57. Kxe4 {[%clk 0:07:11]} 57... h2 {[%clk 0:22:51]} 58. Bd2
{[%clk 0:07:20]} 58... h1=Q {[%clk 0:23:14]} 59. Kf5 {[%clk 0:07:39]} 59... Qf1+
{[%clk 0:23:25]} 60. Kg6 {[%clk 0:07:58]} 60... Qd3+ {[%clk 0:23:49]} 61. Kxf6
{[%clk 0:08:21]} 61... Qxd2 {[%clk 0:24:14]} 62. Kxe5 {[%clk 0:08:45]} 62...
Qxc3+ {[%clk 0:24:40]} 63. Kf5 {[%clk 0:09:06]} 63... Qxb4 {[%clk 0:25:02]} 64.
Kxg5 {[%clk 0:09:31]} 64... Qa5+ {[%clk 0:25:28]} 65. Kf4 {[%clk 0:09:47]} 65...
Qxa2 {[%clk 0:25:53]} 66. Ke4 {[%clk 0:10:10]} 66... Qa5 {[%clk 0:26:14]} 67.
Kf4 {[%clk 0:09:58]} 67... Qh5 {[%clk 0:26:33]} 68. Ke4 {[%clk 0:10:22]} 68...
Qg5 {[%clk 0:27:00]} 69. Kd3 {[%clk 0:10:47]} 69... Qf4 {[%clk 0:27:26]} 70. Ke2
{[%clk 0:11:09]} 70... Qf3+ {[%clk 0:27:50]} 71. Ke1 {[%clk 0:11:30]} 71... Qf2+
{[%clk 0:28:14]} 72. Kd1 {[%clk 0:11:55]} 72... Kf3 {[%clk 0:28:42]} 73. Kc1
{[%clk 0:12:17]} 73... Ke3 {[%clk 0:29:09]} 74. Kb1 {[%clk 0:12:19]} 74... Kd3
{[%clk 0:29:37]} 75. Ka1 {[%clk 0:12:43]} 75... Kc3 {[%clk 0:30:04]} 76. Kb1
{[%clk 0:13:09]} 76... Qb2# 0-1

[Variant "Standard"]
[Site "Europe Echecs"]

[Event "Championnat du monde jeunes U12F"]
[Date "2024.11.15"]
[White "Bohatyrova, Mariia"]
[Black "Liu, Lillian Yu-Ning"]
[WhiteElo "1722"]
[BlackElo "1456"]
[Round "1.40"]
[Result "1-0"]
[TimeControl "5400+30"]

1. e4 {[%clk 1:30:57]} 1... e5 {[%clk 1:30:54]} 2. Nf3 {[%clk 1:31:19]} 2... Nc6
{[%clk 1:31:17]} 3. Nc3 {[%clk 1:31:43]} 3... Nf6 {[%clk 1:31:38]} 4. d4 {[%clk
1:32:02]} 4... exd4 {[%clk 1:31:51]} 5. Nxd4 {[%clk 1:32:26]} 5... Nxd4 {[%clk
1:31:53]} 6. Qxd4 {[%clk 1:32:46]} 6... d6 {[%clk 1:31:52]} 7. Bc4 {[%clk
1:30:47]} 7... Be7 {[%clk 1:30:49]} 8. O-O {[%clk 1:29:41]} 8... O-O {[%clk
1:30:12]} 9. Nd5 {[%clk 1:22:35]} 9... Nxd5 {[%clk 1:27:35]} 10. Bxd5 {[%clk
1:22:38]} 10... Bf6 {[%clk 1:24:58]} 11. Qd3 {[%clk 1:22:07]} 11... c6 {[%clk
1:21:43]} 12. Bb3 {[%clk 1:21:47]} 12... Re8 {[%clk 1:20:34]} 13. c3 {[%clk
1:14:28]} 13... Be6 {[%clk 1:13:26]} 14. Bc2 {[%clk 0:58:11]} 14... g6 {[%clk
1:09:05]} 15. f4 {[%clk 0:46:57]} 15... b5 {[%clk 0:58:22]} 16. Bb3 {[%clk
0:38:48]} 16... Bxb3 {[%clk 0:53:11]} 17. axb3 {[%clk 0:38:43]} 17... Qb6+
{[%clk 0:45:57]} 18. Kh1 {[%clk 0:31:10]} 18... c5 {[%clk 0:42:52]} 19. f5
{[%clk 0:21:17]} 19... g5 {[%clk 0:37:46]} 20. Bd2 {[%clk 0:07:04]} 20... c4
{[%clk 0:35:06]} 21. bxc4 {[%clk 0:06:35]} 21... bxc4 {[%clk 0:35:18]} 22. Qc2
{[%clk 0:06:02]} 22... Qb7 {[%clk 0:35:10]} 23. Rfe1 {[%clk 0:06:05]} 23... d5
{[%clk 0:33:40]} 24. e5 {[%clk 0:03:13]} 24... Rxe5 {[%clk 0:32:28]} 25. Rxe5
{[%clk 0:03:34]} 25... Bxe5 {[%clk 0:32:53]} 26. Bxg5 {[%clk 0:03:55]} 26... Kg7
{[%clk 0:30:11]} 27. f6+ {[%clk 0:02:01]} 27... Bxf6 {[%clk 0:29:59]} 28. Bxf6+
{[%clk 0:02:25]} 28... Kxf6 {[%clk 0:30:25]} 29. Qxh7 {[%clk 0:01:54]} 29... Rb8
{[%clk 0:28:48]} 30. Rf1+ {[%clk 0:01:55]} 30... Ke7 {[%clk 0:28:59]} 31. Rxf7+
{[%clk 0:02:08]} 31... Kd6 {[%clk 0:29:10]} 32. Rxb7 {[%clk 0:02:23]} 1-0

[Variant "Standard"]
[Site "Europe Echecs"]

[Event "Championnat du monde jeunes U12F"]
[Date "2024.11.15"]
[White "Hrckova, Anna"]
[Black "Allahverdi, Zahra"]
[WhiteElo "1441"]
[BlackElo "1718"]
[Round "1.41"]
[Result "0-1"]
[TimeControl "5400+30"]

1. e4 {[%clk 1:30:56]} 1... e5 {[%clk 1:30:50]} 2. Nf3 {[%clk 1:31:21]} 2... Nc6
{[%clk 1:31:13]} 3. Bb5 {[%clk 1:31:44]} 3... a6 {[%clk 1:31:38]} 4. Ba4 {[%clk
1:32:05]} 4... Nf6 {[%clk 1:31:56]} 5. O-O {[%clk 1:32:13]} 5... Nxe4 {[%clk
1:30:52]} 6. Re1 {[%clk 1:32:17]} 6... Nc5 {[%clk 1:30:37]} 7. Bxc6 {[%clk
1:30:15]} 7... dxc6 {[%clk 1:30:17]} 8. Nxe5 {[%clk 1:29:26]} 8... Be7 {[%clk
1:30:14]} 9. d4 {[%clk 1:27:40]} 9... Ne6 {[%clk 1:28:09]} 10. Be3 {[%clk
1:23:30]} 10... O-O {[%clk 1:20:54]} 11. a3 {[%clk 1:17:48]} 11... f5 {[%clk
1:09:47]} 12. f4 {[%clk 1:11:44]} 12... Rf6 {[%clk 1:08:14]} 13. Nc3 {[%clk
1:11:04]} 13... Nf8 {[%clk 0:59:14]} 14. Ne2 {[%clk 0:51:44]} 14... Rh6 {[%clk
0:56:09]} 15. Qd2 {[%clk 0:50:03]} 15... Bd6 {[%clk 0:54:04]} 16. Ng3 {[%clk
0:48:53]} 16... Be6 {[%clk 0:51:02]} 17. h3 {[%clk 0:45:32]} 17... Ng6 {[%clk
0:49:35]} 18. Qd3 {[%clk 0:42:57]} 18... Qf6 {[%clk 0:44:24]} 19. c4 {[%clk
0:41:55]} 19... Rd8 {[%clk 0:40:41]} 20. Qc2 {[%clk 0:39:43]} 20... Be7 {[%clk
0:35:25]} 21. Rad1 {[%clk 0:39:04]} 21... Qf8 {[%clk 0:33:55]} 22. Rf1 {[%clk
0:35:58]} 22... Bh4 {[%clk 0:32:27]} 23. Rf3 {[%clk 0:33:10]} 23... Ne7 {[%clk
0:30:32]} 24. a4 {[%clk 0:28:35]} 24... Kh8 {[%clk 0:25:44]} 25. b3 {[%clk
0:24:58]} 25... Nc8 {[%clk 0:23:46]} 26. Qc3 {[%clk 0:18:05]} 26... Nd6 {[%clk
0:21:15]} 27. Qc2 {[%clk 0:14:21]} 27... Bxg3 {[%clk 0:18:11]} 28. Rxg3 {[%clk
0:14:44]} 28... Ne4 {[%clk 0:18:34]} 29. Rf3 {[%clk 0:14:43]} 29... Bg8 {[%clk
0:17:55]} 30. c5 {[%clk 0:13:01]} 30... Bd5 {[%clk 0:17:48]} 31. Rff1 {[%clk
0:12:26]} 31... Qg8 {[%clk 0:17:26]} 32. Rd3 {[%clk 0:12:14]} 32... Ng3 {[%clk
0:17:26]} 33. Rf2 {[%clk 0:11:13]} 33... Qe6 34. Qb2 {[%clk 0:09:42]} 34... Qf6
{[%clk 0:12:05]} 35. b4 {[%clk 0:09:46]} 35... Kg8 {[%clk 0:11:22]} 36. b5
{[%clk 0:08:48]} 36... cxb5 37. axb5 {[%clk 0:09:13]} 37... axb5 {[%clk
0:10:50]} 38. Qxb5 {[%clk 0:09:38]} 38... Ra8 {[%clk 0:10:14]} 39. Rd1 {[%clk
0:08:49]} 39... Ne4 {[%clk 0:10:21]} 40. Rc2 {[%clk 0:08:42]} 40... Qe6 {[%clk
0:09:58]} 41. Rdc1 {[%clk 0:08:39]} 41... Ra3 {[%clk 0:09:41]} 42. Bf2 {[%clk
0:08:31]} 42... Rf6 {[%clk 0:06:45]} 43. Qd7 {[%clk 0:07:56]} 43... Qxd7 {[%clk
0:06:52]} 44. Nxd7 {[%clk 0:08:21]} 44... Rfa6 {[%clk 0:06:16]} 45. Ne5 {[%clk
0:07:32]} 45... R6a4 {[%clk 0:06:11]} 46. c6 {[%clk 0:06:20]} 46... b5 {[%clk
0:04:52]} 47. Rb2 {[%clk 0:06:13]} 47... b4 {[%clk 0:04:07]} 48. Nd7 {[%clk
0:05:06]} 48... Ra2 {[%clk 0:03:55]} 49. Rcb1 {[%clk 0:04:01]} 49... Rxb2 {[%clk
0:03:40]} 50. Rxb2 b3 {[%clk 0:03:54]} 51. Bh4 {[%clk 0:04:09]} 51... Ra2 {[%clk
0:04:05]} 52. Rb1 {[%clk 0:04:18]} 52... b2 {[%clk 0:04:16]} 53. Kh2 {[%clk
0:04:25]} 53... Nc3 {[%clk 0:04:36]} 54. Re1 {[%clk 0:04:11]} 54... b1=Q {[%clk
0:04:51]} 55. Re8+ {[%clk 0:04:29]} 55... Kf7 {[%clk 0:05:10]} 56. Re7+ {[%clk
0:04:43]} 56... Kg6 {[%clk 0:05:23]} 57. Ne5+ {[%clk 0:04:31]} 57... Kh6 {[%clk
0:05:28]} 58. Bg5+ {[%clk 0:04:30]} 58... Kh5 {[%clk 0:05:54]} 59. Rxg7 {[%clk
0:04:44]} 59... Rxg2# {[%clk 0:06:18]} 0-1

[Variant "Standard"]
[Site "Europe Echecs"]

[Event "Championnat du monde jeunes U12F"]
[Date "2024.11.16"]
[White "Baruch, Amit"]
[Black "Ejsymont, Blanka"]
[WhiteElo "1747"]
[BlackElo "1945"]
[Round "2.1"]
[Result "1/2-1/2"]
[TimeControl "5400+30"]

1. e4 {[%clk 1:30:57]} 1... c6 {[%clk 1:30:56]} 2. d4 {[%clk 1:31:18]} 2... d5
{[%clk 1:31:22]} 3. exd5 {[%clk 1:31:37]} 3... cxd5 {[%clk 1:31:46]} 4. c4
{[%clk 1:31:47]} 4... Nf6 {[%clk 1:32:11]} 5. Nc3 {[%clk 1:32:07]} 5... Nc6
{[%clk 1:32:29]} 6. Nf3 {[%clk 1:32:28]} 6... a6 {[%clk 1:32:54]} 7. Bg5 {[%clk
1:29:07]} 7... Be6 {[%clk 1:33:11]} 8. cxd5 {[%clk 1:27:23]} 8... Nxd5 {[%clk
1:26:11]} 9. Bd3 {[%clk 1:24:39]} 9... g6 {[%clk 1:24:44]} 10. O-O {[%clk
1:19:49]} 10... Bg7 {[%clk 1:23:39]} 11. Be4 {[%clk 1:18:48]} 11... O-O {[%clk
1:21:34]} 12. Re1 {[%clk 1:12:39]} 12... Re8 {[%clk 1:13:03]} 13. Qd2 Rc8 {[%clk
1:08:27]} 14. Bh6 {[%clk 1:03:01]} 14... Bf6 {[%clk 0:58:43]} 15. a3 {[%clk
0:32:45]} 15... Na5 {[%clk 0:44:42]} 16. Nxd5 {[%clk 0:28:56]} 16... Bxd5 {[%clk
0:42:52]} 17. Qf4 Nc4 {[%clk 0:37:41]} 18. Bg5 {[%clk 0:24:38]} 18... Bg7 {[%clk
0:23:00]} 19. Bxd5 {[%clk 0:23:09]} 19... Qxd5 {[%clk 0:23:22]} 20. Rxe7 {[%clk
0:17:26]} 20... Rxe7 {[%clk 0:20:22]} 21. Bxe7 {[%clk 0:17:45]} 21... Nxb2
{[%clk 0:20:03]} 22. Ne5 {[%clk 0:13:49]} 22... Nc4 {[%clk 0:17:20]} 23. Rc1
{[%clk 0:12:06]} 23... b5 {[%clk 0:17:32]} 24. Bf6 {[%clk 0:10:36]} 24... Bf8
{[%clk 0:10:51]} 25. h4 {[%clk 0:09:37]} 25... Re8 {[%clk 0:08:37]} 26. h5
{[%clk 0:08:01]} 26... Qe6 {[%clk 0:04:49]} 27. hxg6 {[%clk 0:06:30]} 27... hxg6
{[%clk 0:03:52]} 28. Qg5 {[%clk 0:04:54]} 28... Nxe5 29. dxe5 {[%clk 0:04:42]}
29... Bg7 {[%clk 0:02:15]} 30. Rd1 {[%clk 0:00:46]} 30... a5 {[%clk 0:00:39]}
31. Rd6 {[%clk 0:00:52]} 31... Qf5 {[%clk 0:00:38]} 32. Qxf5 {[%clk 0:00:44]}
32... gxf5 {[%clk 0:01:02]} 33. Ra6 {[%clk 0:01:05]} 33... b4 {[%clk 0:00:40]}
34. Rxa5 {[%clk 0:01:08]} 34... bxa3 {[%clk 0:00:41]} 35. Rxa3 {[%clk 0:01:32]}
35... Bxf6 {[%clk 0:00:48]} 36. exf6 {[%clk 0:01:56]} 36... Re6 {[%clk 0:00:56]}
37. Rf3 {[%clk 0:01:41]} 37... Rxf6 {[%clk 0:01:19]} 38. Kh2 {[%clk 0:01:03]}
38... Kg7 {[%clk 0:01:33]} 39. Kg3 {[%clk 0:01:00]} 39... Rg6+ {[%clk 0:01:55]}
40. Kh3 {[%clk 0:00:48]} 40... Rh6+ {[%clk 0:02:12]} 41. Kg3 {[%clk 0:01:12]}
41... Rg6+ {[%clk 0:02:38]} 42. Kf4 {[%clk 0:00:58]} 42... Rxg2 {[%clk 0:02:05]}
43. Kxf5 {[%clk 0:01:19]} 43... Rg6 {[%clk 0:02:17]} 44. Rg3 {[%clk 0:00:36]}
44... Rxg3 {[%clk 0:02:10]} 45. fxg3 {[%clk 0:01:05]} 45... f6 {[%clk 0:02:26]}
46. g4 {[%clk 0:01:15]} 46... Kf7 {[%clk 0:02:52]} 47. g5 {[%clk 0:00:48]} 47...
fxg5 {[%clk 0:03:14]} 48. Kxg5 {[%clk 0:01:16]} 1/2-1/2

[Variant "Standard"]
[Site "Europe Echecs"]